bitfinex-derivatives/quotes_BTCF0:USTF0_20260221
["timestamp","ask_amount","ask_price","bid_price","bid_amount"]
[1771713742490,0.014669,68191.0,68186.0,0.01467]
[1771713742789,0.014669,68190.0,68182.0,0.01467]
[1771713743086,0.014669,68190.0,68185.0,0.01467]
[1771713743389,0.014668,68195.0,68186.0,0.01467]
[1771713743390,0.014669,68191.0,68186.0,0.01467]
[1771713746790,0.014669,68191.0,68186.0,0.02934]
[1771713746990,0.014669,68191.0,68186.0,0.01467]
[1771713747293,0.014668,68195.0,68187.0,0.029335]
[1771713748596,0.014669,68191.0,68187.0,0.029335]
[1771713749996,0.01957158,68200.0,68187.0,0.029335]
[1771713750187,0.014664,68212.0,68191.0,0.12957415]
[1771713750488,0.014666,68203.0,68198.0,0.014667]
[1771713750694,0.014666,68206.0,68200.0,0.014667]
[1771713750891,0.014666,68205.0,68200.0,0.014667]
[1771713751087,0.014666,68205.0,68199.0,0.014667]
[1771713751088,0.014666,68204.0,68199.0,0.014667]
[1771713751284,0.014666,68204.0,68199.0,0.058669]
[1771713751484,0.014665,68209.0,68204.0,0.014666]
[1771713751687,0.014665,68208.0,68203.0,0.014666]
[1771713752289,0.014665,68207.0,68202.0,0.014666]
[1771713754102,0.01957158,68220.0,68203.0,0.029335]
[1771713754307,0.014664,68211.0,68205.0,0.014665]
[1771713755103,0.014666,68204.0,68199.0,0.014667]
[1771713755302,0.014666,68203.0,68199.0,0.014667]
[1771713755504,0.014666,68204.0,68199.0,0.014667]
[1771713756905,0.014666,68203.0,68199.0,0.014667]
[1771713759504,0.014666,68204.0,68199.0,0.014667]
[1771713759705,0.014666,68203.0,68199.0,0.014667]
[1771713762316,0.014666,68201.0,68195.0,0.014668]
[1771713762501,0.014666,68202.0,68195.0,0.014668]
[1771713763305,0.014665,68207.0,68194.0,0.014668]
[1771713763610,0.014667,68201.0,68195.0,0.014668]
[1771713763810,0.014667,68200.0,68195.0,0.014668]
[1771713765009,0.014667,68200.0,68194.0,0.014668]
[1771713768108,0.014667,68200.0,68194.0,0.015508]
[1771713768302,0.014667,68200.0,68194.0,0.014668]
[1771713771915,0.014667,68201.0,68192.0,0.014668]
[1771713772118,0.014667,68201.0,68194.0,0.029336]
[1771713772512,0.014667,68201.0,68194.0,0.014668]
[1771713773112,0.014667,68201.0,68193.0,0.014668]
[1771713773318,0.014667,68200.0,68193.0,0.014668]
[1771713774018,0.014666,68204.0,68181.0,0.14699554]
[1771713774217,0.014668,68195.0,68187.0,0.014669]
[1771713774916,0.014668,68196.0,68189.0,0.014669]
[1771713775312,0.014668,68196.0,68190.0,0.014669]
[1771713777415,0.014668,68195.0,68189.0,0.014669]
[1771713777813,0.014668,68193.0,68186.0,0.01467]
[1771713778119,0.014668,68193.0,68187.0,0.014669]
[1771713778517,0.014667,68200.0,68156.0,0.00018378]
[1771713778518,0.0468167,68179.0,68156.0,0.00018378]
[1771713778711,0.014672,68177.0,68159.0,0.014675]
[1771713778912,0.014674,68167.0,68158.0,0.014676]
[1771713779122,0.014674,68165.0,68158.0,0.014676]
[1771713779315,0.014674,68164.0,68157.0,0.014676]
[1771713779620,0.014674,68165.0,68158.0,0.014676]
[1771713779819,0.014674,68164.0,68159.0,0.001]
[1771713780119,0.014674,68165.0,68159.0,0.001]
[1771713780414,0.014674,68165.0,68159.0,0.015675]
[1771713780725,0.014673,68169.0,68159.0,0.015675]
[1771713780906,0.014674,68165.0,68159.0,0.001]
[1771713781911,0.014674,68164.0,68159.0,0.001]
[1771713782119,0.014675,68161.0,68153.0,0.014677]
[1771713782414,0.014675,68161.0,68154.0,0.014676]
[1771713782613,0.014675,68161.0,68154.0,0.014677]
[1771713782919,0.014675,68160.0,68154.0,0.014677]
[1771713783121,0.00015365,68159.0,68154.0,0.014677]
[1771713784717,0.00015365,68159.0,68135.0,0.13232454]
[1771713784923,0.014677,68154.0,68147.0,0.014678]
[1771713785119,0.014677,68154.0,68142.0,0.014679]
[1771713785310,0.014677,68151.0,68144.0,0.014679]
[1771713785511,0.014677,68151.0,68141.0,0.14700354]
[1771713785716,0.00015365,68159.0,68093.0,0.65722942]
[1771713785717,0.05341435,68150.0,68120.0,0.05871474]
[1771713786019,0.05341435,68150.0,68107.0,0.72926354]
[1771713786020,0.734434,68101.0,68033.0,0.27902167]
[1771713786221,0.734434,68101.0,68033.0,0.18799045]
[1771713786222,0.014702,68036.0,68033.0,0.18799045]
[1771713786413,0.014702,68038.0,68027.0,2.03834986]
[1771713786622,0.14254039,68050.0,68021.0,0.13232454]
[1771713786820,0.14254039,68050.0,68000.0,0.07828632]
[1771713786821,0.14254039,68031.0,68003.0,0.014709]
[1771713787011,0.00014162,68030.0,68003.0,0.13232454]
[1771713787319,0.00014162,68030.0,68019.0,0.014706]
[1771713787520,0.00014162,68030.0,68009.0,0.14703254]
[1771713787710,0.0197132,68030.0,68009.0,0.13232454]
[1771713788016,0.22419719,68030.0,68010.0,0.014708]
[1771713788215,0.22419719,68030.0,67960.0,0.09442472]
[1771713788216,0.00014162,68030.0,68005.0,0.22252009]
[1771713788417,0.22405557,68028.0,68003.0,0.014709]
[1771713788622,0.014704,68025.0,67998.0,0.01471]
[1771713788817,0.22405557,68028.0,68001.0,0.014709]
[1771713788818,0.22422408,68024.0,68001.0,0.014709]
[1771713789010,0.26711823,68030.0,67999.0,0.01471]
[1771713789011,0.23876057,68022.0,67999.0,0.01471]
[1771713789217,0.22405557,68018.0,68003.0,0.001]
[1771713789519,0.00012927,68023.0,68003.0,0.001]
[1771713789719,0.00012927,68023.0,68011.0,0.014707]
[1771713790019,0.00012927,68023.0,68002.0,0.22252009]
[1771713790214,0.00012927,68023.0,68005.0,0.014709]
[1771713790417,0.00012927,68023.0,67993.0,0.22252009]
[1771713790720,0.97504337,68023.0,68009.0,0.014708]
[1771713790920,0.97504337,68023.0,67987.0,1.16562802]
[1771713790921,8e-07,68023.0,68001.0,0.22252009]
[1771713791114,0.22405557,68037.0,68011.0,0.23722709]
[1771713791313,0.22405557,68046.0,68029.0,0.014703]
[1771713791515,0.22405557,68046.0,68015.0,0.4250314]
[1771713791724,0.75676647,68054.0,68045.0,0.0147]
[1771713792017,0.75676647,68054.0,68041.0,0.014701]
[1771713792018,0.73727253,68068.0,68057.0,0.014697]
[1771713792317,0.47016,68070.0,68054.0,0.014698]
[1771713792708,0.47016,68070.0,68050.0,0.014699]
[1771713792709,0.26421406,68076.0,68056.0,0.014698]
[1771713792914,0.24952106,68076.0,68054.0,0.014698]
[1771713793121,0.99012558,68076.0,68061.0,0.014697]
[1771713793313,2.04686556,68078.0,68073.0,0.014694]
[1771713793519,0.776121,68090.0,68074.0,0.014694]
[1771713793817,0.01469,68093.0,68072.0,0.014694]
[1771713794021,0.014689,68094.0,68075.0,0.014693]
[1771713794319,0.01469,68094.0,68077.0,0.014693]
[1771713794510,0.74763235,68097.0,68078.0,0.034693]
[1771713794711,0.014689,68096.0,68079.0,0.014693]
[1771713795020,0.014689,68097.0,68081.0,0.014692]
[1771713795320,0.014689,68096.0,68080.0,0.014692]
[1771713795516,0.014688,68103.0,68078.0,0.02]
[1771713795711,0.014689,68096.0,68080.0,0.014692]
[1771713796114,0.014688,68100.0,68078.0,0.02]
[1771713796312,0.7589841,68102.0,68078.0,0.02]
[1771713796313,0.014689,68096.0,68080.0,0.014692]
[1771713796520,0.014688,68101.0,68083.0,0.014692]
[1771713796715,1.189087,68105.0,68085.0,0.014691]
[1771713796914,0.014687,68104.0,68086.0,0.014691]
[1771713797116,0.014688,68102.0,68086.0,0.014691]
[1771713797325,0.001,68100.0,68086.0,0.014691]
[1771713798121,0.74281306,68116.0,68078.0,0.02]
[1771713798122,0.09189198,68120.0,68100.0,0.014688]
[1771713798418,0.014685,68116.0,68100.0,0.014688]
[1771713798622,0.014685,68115.0,68100.0,0.014688]
[1771713798927,0.014685,68115.0,68097.0,0.014689]
[1771713798928,0.014684,68118.0,68101.0,0.014688]
[1771713799116,0.014685,68116.0,68100.0,0.014688]
[1771713799317,0.014684,68119.0,68099.0,0.014688]
[1771713799518,0.014685,68117.0,68099.0,0.014688]
[1771713799912,0.014685,68117.0,68102.0,1.16560302]
[1771713800115,0.014684,68119.0,68103.0,0.014688]
[1771713800316,0.014684,68119.0,68100.0,0.014688]
[1771713800317,0.002,68116.0,68104.0,0.014687]
[1771713800617,0.002,68116.0,68105.0,0.014687]
[1771713801123,0.002,68116.0,68104.0,0.014687]
[1771713801321,0.002,68116.0,68105.0,0.014687]
[1771713801622,0.002,68116.0,68106.0,0.014687]
[1771713801820,0.014683,68126.0,68106.0,0.014687]
[1771713802020,0.014682,68127.0,68112.0,0.014686]
[1771713802316,0.014682,68128.0,68113.0,0.014685]
[1771713802521,0.014682,68130.0,68115.0,0.014685]
[1771713802721,0.47032,68132.0,68115.0,0.014685]
[1771713802924,0.014682,68128.0,68113.0,0.014685]
[1771713803220,0.015682,68127.0,68113.0,1.16560002]
[1771713803427,0.015682,68127.0,68113.0,0.014685]
[1771713803625,0.014682,68127.0,68113.0,0.014685]
[1771713803820,0.014682,68130.0,68116.0,0.014685]
[1771713804321,0.09189198,68140.0,68113.0,0.4397164]
[1771713804322,0.014678,68147.0,68126.0,0.014682]
[1771713804523,0.014678,68146.0,68131.0,0.014681]
[1771713804823,0.014678,68149.0,68133.0,1.16559602]
[1771713805016,0.014678,68148.0,68132.0,0.4397124]
[1771713805822,0.014678,68150.0,68135.0,0.014681]
[1771713806024,0.014677,68151.0,68137.0,0.01468]
[1771713806226,0.014677,68152.0,68136.0,1.15091502]
[1771713806422,0.014677,68152.0,68135.0,0.014681]
[1771713806630,0.014677,68153.0,68139.0,0.01468]
[1771713806822,0.014677,68153.0,68139.0,1.16559502]
[1771713807023,0.014677,68153.0,68139.0,0.01468]
[1771713807730,0.014677,68153.0,68142.0,1.15091502]
[1771713807928,0.014677,68153.0,68139.0,0.01468]
[1771713808124,0.014677,68152.0,68139.0,0.01468]
[1771713808326,0.014676,68155.0,68140.0,0.01468]
[1771713808628,0.014677,68152.0,68139.0,0.01468]
[1771713808827,0.014677,68153.0,68137.0,0.01468]
[1771713808828,0.014677,68153.0,68143.0,1.15091502]
[1771713809027,0.014677,68153.0,68137.0,0.01468]
[1771713809225,0.23876499,68146.0,68112.0,0.4250314]
[1771713809424,0.014678,68147.0,68105.0,0.014687]
[1771713809425,0.014681,68134.0,68105.0,0.014687]
[1771713809621,0.014683,68124.0,68109.0,0.014686]
[1771713809826,0.24809173,68155.0,68124.0,0.4250314]
[1771713810022,0.24809173,68155.0,68128.0,0.014682]
[1771713810327,0.01468,68139.0,68125.0,0.014683]
[1771713810530,0.01468,68137.0,68124.0,0.4397144]
[1771713810725,0.01468,68136.0,68124.0,0.4397144]
[1771713810926,0.01468,68136.0,68130.0,1.15091502]
[1771713811121,0.014681,68135.0,68124.0,0.4250314]
[1771713811729,0.029359,68141.0,68126.0,0.014682]
[1771713812030,0.014679,68143.0,68131.0,0.014681]
[1771713812230,0.014679,68142.0,68130.0,0.014682]
[1771713812426,0.014679,68141.0,68129.0,0.014682]
[1771713812633,0.014679,68142.0,68130.0,0.014682]
[1771713812831,0.014679,68142.0,68134.0,1.15091502]
[1771713813027,0.014679,68142.0,68130.0,0.014682]
[1771713813229,0.014679,68142.0,68128.0,0.014682]
[1771713813634,0.014679,68141.0,68130.0,0.014682]
[1771713813835,0.014679,68142.0,68135.0,1.15091502]
[1771713814133,0.014679,68142.0,68130.0,0.014682]
[1771713814331,0.014678,68148.0,68141.0,1.15091502]
[1771713814533,0.014678,68146.0,68134.0,0.014681]
[1771713814732,0.014679,68145.0,68133.0,0.014681]
[1771713815030,0.014678,68148.0,68136.0,0.4397114]
[1771713815336,0.09189198,68160.0,68131.0,0.014681]
[1771713815337,0.014677,68152.0,68144.0,1.15091502]
[1771713815531,0.014677,68152.0,68140.0,0.014679]
[1771713815732,0.014677,68152.0,68141.0,0.014679]
[1771713815928,0.014677,68153.0,68146.0,1.15091502]
[1771713816129,0.014677,68152.0,68141.0,0.014679]
[1771713816329,0.014677,68152.0,68147.0,1.15091502]
[1771713816528,0.014677,68153.0,68142.0,0.014679]
[1771713816731,0.014677,68154.0,68140.0,0.014679]
[1771713816933,0.014677,68154.0,68146.0,1.15091502]
[1771713817132,0.014677,68154.0,68142.0,0.014679]
[1771713817333,0.014677,68152.0,68150.0,1.09096737]
[1771713817635,0.014677,68152.0,68141.0,0.014679]
[1771713817834,0.014677,68153.0,68141.0,0.014679]
[1771713818034,0.014677,68153.0,68140.0,0.4250314]
[1771713818035,0.014677,68155.0,68142.0,0.014679]
[1771713818234,0.014676,68156.0,68144.0,0.014679]
[1771713818539,0.014676,68155.0,68144.0,0.014679]
[1771713819333,0.014676,68156.0,68144.0,0.014679]
[1771713820034,0.014676,68156.0,68145.0,0.014678]
[1771713820429,0.014675,68159.0,68145.0,0.44966148]
[1771713820633,0.014676,68157.0,68146.0,0.014678]
[1771713820834,0.014676,68157.0,68145.0,0.46433948]
[1771713820835,0.014676,68155.0,68145.0,0.44966148]
[1771713821337,0.30613693,68154.0,68145.0,0.44966148]
[1771713821536,0.014676,68158.0,68145.0,0.44966148]
[1771713821734,0.014676,68156.0,68145.0,0.44966148]
[1771713821935,0.30613675,68155.0,68150.0,0.014677]
[1771713822136,0.014674,68165.0,68151.0,0.014677]
[1771713822137,0.014674,68164.0,68151.0,0.014677]
[1771713822338,0.014674,68164.0,68152.0,0.014677]
[1771713822542,0.014675,68163.0,68152.0,0.014677]
[1771713822937,0.014675,68162.0,68148.0,0.014678]
[1771713823137,0.014675,68160.0,68149.0,0.014678]
[1771713823945,0.014675,68160.0,68150.0,0.014677]
[1771713824543,0.014675,68160.0,68149.0,0.014678]
[1771713824742,0.014676,68159.0,68149.0,0.014678]
[1771713824943,0.014674,68165.0,68144.0,0.014679]
[1771713824944,0.014677,68154.0,68144.0,0.014679]
[1771713825144,0.014678,68148.0,68137.0,0.46434148]
[1771713825544,0.014678,68147.0,68137.0,0.46434148]
[1771713825848,0.014678,68146.0,68137.0,0.46434148]
[1771713826050,0.014679,68145.0,68137.0,0.44966148]
[1771713826246,0.014678,68146.0,68137.0,0.46434148]
[1771713827742,0.014679,68143.0,68137.0,0.001]
[1771713827939,0.014679,68142.0,68137.0,0.001]
[1771713828140,0.014681,68135.0,68127.0,0.014682]
[1771713828346,0.014679,68142.0,68124.0,0.014683]
[1771713828545,0.014681,68133.0,68124.0,0.014683]
[1771713829752,0.014681,68132.0,68123.0,0.014683]
[1771713830244,0.014681,68133.0,68122.0,0.014683]
[1771713830446,0.014681,68132.0,68124.0,0.014683]
[1771713830646,0.014684,68121.0,68119.0,0.00010914]
[1771713830853,0.40399026,68137.0,68108.0,0.014686]
[1771713830854,0.014684,68119.0,68108.0,0.014686]
[1771713831144,0.014685,68117.0,68108.0,0.014686]
[1771713831344,0.014685,68116.0,68107.0,0.014687]
[1771713831662,0.014685,68115.0,68105.0,0.46434848]
[1771713831855,0.014685,68114.0,68105.0,0.44966148]
[1771713832054,0.014686,68112.0,68103.0,0.014687]
[1771713832850,0.014685,68113.0,68104.0,0.014687]
[1771713833355,0.01480279,68115.0,68101.0,0.014688]
[1771713833356,0.014686,68112.0,68103.0,0.014688]
[1771713833552,0.01480279,68115.0,68104.0,0.014687]
[1771713833755,0.00011779,68115.0,68105.0,0.014687]
[1771713833947,0.01480279,68115.0,68100.0,0.014688]
[1771713834152,0.29715316,68114.0,68103.0,0.014687]
[1771713834449,0.38838758,68115.0,68087.0,0.46435248]
[1771713834746,0.014687,68104.0,68084.0,0.014692]
[1771713834951,0.014689,68095.0,68084.0,0.014692]
[1771713835157,0.29702635,68094.0,68084.0,0.014692]
[1771713835352,0.00011779,68093.0,68084.0,0.014692]
[1771713835652,0.00011779,68093.0,68081.0,0.00073442]
[1771713835848,0.01469,68092.0,68081.0,0.00073442]
[1771713836053,0.014691,68089.0,68081.0,0.00073442]
[1771713836249,0.01480779,68093.0,68081.0,0.00073442]
[1771713836250,0.01469,68090.0,68081.0,0.00073442]
[1771713836451,0.01469,68091.0,68081.0,0.00073442]
[1771713836850,0.014691,68086.0,68081.0,0.00073442]
[1771713837051,0.00011779,68085.0,68078.0,0.02]
[1771713837248,0.01480879,68085.0,68078.0,0.02]
[1771713837453,0.014692,68083.0,68078.0,0.02]
[1771713837957,0.014692,68083.0,68081.0,0.001]
[1771713838560,0.01480879,68085.0,68078.0,0.02]
[1771713838762,0.01480879,68085.0,68073.0,0.00016691]
[1771713839057,0.014692,68083.0,68073.0,0.00016691]
[1771713839263,0.014692,68081.0,68068.0,0.014695]
[1771713839665,0.014693,68080.0,68068.0,0.014695]
[1771713840760,0.014692,68082.0,68068.0,0.014695]
[1771713841063,0.014693,68079.0,68068.0,0.014695]
[1771713841358,0.014693,68079.0,68069.0,0.014695]
[1771713841561,0.014693,68080.0,68069.0,0.014695]
[1771713841761,0.014693,68080.0,68065.0,0.014696]
[1771713841958,0.014695,68070.0,68059.0,0.029394]
[1771713842155,0.014695,68070.0,68054.0,0.44966148]
[1771713842156,0.014694,68072.0,68061.0,0.014696]
[1771713842555,0.38587736,68076.0,68057.0,0.014697]
[1771713842757,0.014694,68073.0,68060.0,0.014697]
[1771713842962,0.014695,68071.0,68060.0,0.014697]
[1771713843162,0.014694,68072.0,68061.0,0.014697]
[1771713845566,0.014694,68073.0,68062.0,0.014696]
[1771713847066,0.014694,68072.0,68062.0,0.014696]
[1771713847267,0.014689,68098.0,68085.0,0.014691]
[1771713847466,0.014685,68118.0,68106.0,0.014687]
[1771713847765,0.014683,68126.0,68106.0,0.014687]
[1771713847967,0.014684,68122.0,68111.0,0.014686]
[1771713848361,0.014682,68127.0,68115.0,0.014685]
[1771713848561,0.014682,68127.0,68106.0,0.014687]
[1771713848562,0.014683,68123.0,68113.0,0.014685]
[1771713848765,0.01484666,68126.0,68113.0,0.014685]
[1771713848766,0.014684,68122.0,68113.0,0.014685]
[1771713849161,0.014684,68121.0,68111.0,0.014686]
[1771713849363,0.014684,68118.0,68107.0,0.014687]
[1771713849566,0.00010639,68117.0,68109.0,0.014686]
[1771713849766,0.01479139,68117.0,68109.0,0.014686]
[1771713850268,0.00010639,68117.0,68109.0,0.014686]
[1771713850670,0.00010639,68117.0,68110.0,0.014686]
[1771713850872,0.00010639,68117.0,68109.0,0.014686]
[1771713852373,0.01479139,68117.0,68109.0,0.014686]
[1771713852869,0.014685,68116.0,68107.0,0.014687]
[1771713853067,0.014685,68115.0,68108.0,0.029394]
[1771713853258,0.014685,68114.0,68108.0,0.029394]
[1771713853465,0.014686,68112.0,68101.0,0.014688]
[1771713853667,0.014686,68111.0,68101.0,0.014688]
[1771713853972,0.014686,68112.0,68103.0,0.014687]
[1771713854265,0.014686,68113.0,68104.0,0.014687]
[1771713854464,0.014686,68112.0,68104.0,0.014687]
[1771713854668,0.014686,68111.0,68105.0,0.029394]
[1771713857366,0.014687,68105.0,68098.0,0.014688]
[1771713857563,0.00013298,68104.0,68086.0,0.50778465]
[1771713857768,0.01469,68094.0,68086.0,0.52247565]
[1771713857970,0.01469,68094.0,68084.0,0.014692]
[1771713857971,0.00013298,68104.0,68084.0,0.014692]
[1771713858270,0.00013298,68104.0,68078.0,0.50778465]
[1771713858271,0.01469,68091.0,68083.0,0.014692]
[1771713858470,0.00014708,68090.0,68083.0,0.014692]
[1771713858672,0.00014708,68090.0,68082.0,0.014692]
[1771713858673,0.014691,68089.0,68082.0,0.014692]
[1771713858970,0.01483708,68090.0,68083.0,0.014692]
[1771713859168,0.00014708,68090.0,68083.0,0.014692]
[1771713859871,0.01483708,68090.0,68083.0,0.014692]
[1771713860074,0.01410254,68090.0,68083.0,0.014692]
[1771713860270,0.01469,68090.0,68082.0,0.014692]
[1771713860573,0.01469,68090.0,68083.0,0.014692]
[1771713860775,0.014691,68087.0,68079.0,0.014693]
[1771713860972,0.014691,68088.0,68081.0,0.014692]
[1771713861368,0.014691,68087.0,68079.0,0.014693]
[1771713861577,0.014693,68080.0,68072.0,0.014694]
[1771713861879,0.014693,68078.0,68072.0,0.014694]
[1771713862178,0.014693,68077.0,68070.0,0.014695]
[1771713862369,0.014693,68078.0,68071.0,0.014694]
[1771713862568,0.014693,68078.0,68068.0,0.014695]
[1771713862569,0.44230851,68101.0,68076.0,0.014693]
[1771713862875,0.01469,68093.0,68077.0,0.014693]
[1771713863078,0.28398859,68092.0,68077.0,0.014693]
[1771713863262,0.014692,68084.0,68077.0,0.014693]
[1771713863669,0.014692,68083.0,68076.0,0.014693]
[1771713864175,0.014692,68084.0,68077.0,0.014693]
[1771713865069,0.014689,68095.0,68086.0,0.014691]
[1771713865274,0.014691,68090.0,68082.0,0.014692]
[1771713865466,0.014691,68090.0,68083.0,0.014692]
[1771713865666,0.014691,68090.0,68082.0,0.014692]
[1771713866577,0.014691,68090.0,68083.0,0.014692]
[1771713867873,0.01469,68091.0,68084.0,0.014692]
[1771713868369,0.01469,68090.0,68082.0,0.014692]
[1771713869071,0.014691,68089.0,68082.0,0.014692]
[1771713869778,0.014691,68089.0,68083.0,0.014692]
[1771713870779,0.014687,68108.0,68101.0,0.014688]
[1771713870970,0.014686,68112.0,68103.0,0.014687]
[1771713871171,0.014686,68112.0,68104.0,0.014687]
[1771713871369,0.014686,68111.0,68104.0,0.014687]
[1771713871775,0.014686,68112.0,68103.0,0.014687]
[1771713872078,0.014686,68111.0,68104.0,0.014687]
[1771713872378,0.014685,68114.0,68106.0,0.014687]
[1771713872575,0.014686,68112.0,68105.0,0.014687]
[1771713872778,0.014686,68111.0,68102.0,0.014688]
[1771713873072,0.014685,68117.0,68109.0,0.014686]
[1771713873274,0.014685,68115.0,68108.0,0.014686]
[1771713873472,0.014685,68114.0,68106.0,0.014687]
[1771713873780,0.014685,68113.0,68106.0,0.014687]
[1771713873983,0.014685,68113.0,68104.0,0.014687]
[1771713874172,0.014685,68113.0,68105.0,0.014687]
[1771713874371,0.014685,68114.0,68105.0,0.014687]
[1771713874571,0.28023886,68113.0,68105.0,0.014687]
[1771713874772,0.014685,68117.0,68106.0,0.014687]
[1771713874972,0.29492386,68116.0,68108.0,0.014686]
[1771713875277,0.28035068,68115.0,68108.0,0.014686]
[1771713875477,0.014685,68115.0,68108.0,0.014686]
[1771713875680,0.014685,68117.0,68108.0,0.014686]
[1771713875872,0.10464711,68116.0,68108.0,0.014686]
[1771713876072,0.014685,68115.0,68107.0,0.014686]
[1771713876473,0.014685,68116.0,68108.0,0.014686]
[1771713877687,0.014685,68117.0,68109.0,0.014686]
[1771713877881,0.014681,68134.0,68121.0,0.014684]
[1771713878181,0.014682,68128.0,68120.0,0.014684]
[1771713878374,0.014682,68128.0,68121.0,0.014684]
[1771713878575,0.014682,68128.0,68120.0,0.014684]
[1771713878976,0.014682,68127.0,68120.0,0.014684]
[1771713879770,0.014682,68128.0,68120.0,0.014684]
[1771713880571,0.014682,68127.0,68120.0,0.014684]
[1771713880775,0.014683,68125.0,68118.0,0.014684]
[1771713880977,0.014683,68125.0,68117.0,0.014685]
[1771713881184,0.014684,68118.0,68107.0,0.014686]
[1771713881382,0.014684,68121.0,68101.0,0.014688]
[1771713881583,0.014686,68112.0,68105.0,0.014687]
[1771713881885,0.014685,68115.0,68108.0,0.014686]
[1771713882086,0.014686,68112.0,68104.0,0.014687]
[1771713882674,0.01541588,68131.0,68121.0,0.014684]
[1771713882879,0.014682,68129.0,68123.0,0.014683]
[1771713883079,0.014682,68129.0,68119.0,0.014684]
[1771713883279,0.00073388,68131.0,68108.0,0.36591561]
[1771713883488,0.014682,68130.0,68116.0,0.014685]
[1771713883680,0.014683,68126.0,68119.0,0.014684]
[1771713883882,0.014682,68127.0,68109.0,0.014686]
[1771713884486,0.014683,68126.0,68119.0,0.014684]
[1771713884687,0.014683,68125.0,68113.0,0.014685]
[1771713884991,0.014683,68125.0,68117.0,0.014684]
[1771713885186,0.014683,68125.0,68118.0,0.014684]
[1771713886388,0.014683,68126.0,68119.0,0.014684]
[1771713887987,0.014683,68127.0,68120.0,0.014684]
[1771713888190,0.014683,68127.0,68119.0,0.014684]
[1771713888487,0.014683,68126.0,68119.0,0.014684]
[1771713888990,0.00073388,68131.0,68109.0,0.014686]
[1771713888991,0.00073388,68131.0,68120.0,0.34842369]
[1771713889292,0.732551,68276.0,68142.0,0.014679]
[1771713889293,0.49481433,68154.0,68142.0,0.014679]
[1771713889589,0.014678,68149.0,68140.0,0.01468]
[1771713889985,0.014677,68152.0,68141.0,0.014679]
[1771713890187,0.014678,68150.0,68140.0,0.01468]
[1771713890385,0.014678,68150.0,68141.0,0.014679]
[1771713890690,0.50949133,68154.0,68141.0,0.014679]
[1771713890882,0.014677,68152.0,68143.0,0.014679]
[1771713891291,0.014677,68151.0,68143.0,0.014679]
[1771713891489,0.014677,68151.0,68142.0,0.014679]
[1771713891694,0.014677,68153.0,68144.0,0.014679]
[1771713891889,0.014677,68152.0,68144.0,0.014679]
[1771713892286,0.014677,68152.0,68142.0,0.014679]
[1771713892592,0.014677,68152.0,68143.0,0.014679]
[1771713892989,0.014677,68154.0,68144.0,0.014679]
[1771713893185,0.014676,68155.0,68135.0,0.01468]
[1771713893385,0.014676,68155.0,68135.0,0.34356214]
[1771713893592,0.014676,68155.0,68146.0,0.014678]
[1771713893789,0.014676,68156.0,68135.0,0.34356314]
[1771713893987,0.014676,68156.0,68146.0,0.014678]
[1771713894193,0.029352,68158.0,68148.0,0.014678]
[1771713894489,0.014676,68157.0,68147.0,0.014678]
[1771713895292,0.014676,68157.0,68148.0,0.014678]
[1771713895497,0.014676,68158.0,68149.0,0.014678]
[1771713895797,0.014675,68159.0,68149.0,0.014678]
[1771713895989,0.014676,68158.0,68149.0,0.014678]
[1771713896185,0.50948733,68169.0,68156.0,0.014676]
[1771713896385,0.014675,68164.0,68143.0,0.014679]
[1771713896591,0.014675,68164.0,68153.0,0.014677]
[1771713896790,0.014675,68162.0,68152.0,0.014677]
[1771713896991,0.014675,68162.0,68153.0,0.014677]
[1771713897498,0.014675,68161.0,68153.0,0.014677]
[1771713898090,0.014675,68163.0,68154.0,0.014677]
[1771713898397,0.014675,68162.0,68154.0,0.014677]
[1771713899492,0.014675,68162.0,68133.0,0.014681]
[1771713899693,0.49481433,68150.0,68133.0,0.014681]
[1771713899898,0.014679,68141.0,68133.0,0.014681]
[1771713900100,0.014679,68144.0,68132.0,0.014681]
[1771713900285,0.014679,68144.0,68136.0,0.01468]
[1771713900492,0.014679,68142.0,68134.0,0.014681]
[1771713900795,0.014679,68142.0,68135.0,0.014681]
[1771713900996,0.014679,68142.0,68133.0,0.014681]
[1771713901301,0.01468,68139.0,68131.0,0.014681]
[1771713901695,0.01468,68138.0,68126.0,0.014683]
[1771713901902,0.014681,68132.0,68123.0,0.014683]
[1771713902096,0.014682,68130.0,68122.0,0.014683]
[1771713902398,0.014682,68130.0,68123.0,0.014683]
[1771713902988,0.014682,68130.0,68122.0,0.014683]
[1771713903193,0.014679,68145.0,68137.0,0.01468]
[1771713903394,0.014678,68147.0,68139.0,0.01468]
[1771713903588,0.014677,68150.0,68141.0,0.014679]
[1771713903795,0.014677,68153.0,68145.0,0.014678]
[1771713904102,0.014677,68152.0,68144.0,0.014679]
[1771713904298,0.014677,68153.0,68144.0,0.014679]
[1771713904498,0.014677,68153.0,68145.0,0.014678]
[1771713905395,0.014676,68156.0,68147.0,0.014678]
[1771713905793,0.014676,68155.0,68147.0,0.014678]
[1771713906202,0.014677,68154.0,68145.0,0.014678]
[1771713906400,0.014677,68153.0,68145.0,0.014678]
[1771713906692,0.014676,68156.0,68146.0,0.014678]
[1771713907000,0.49481433,68156.0,68143.0,0.014679]
[1771713907195,0.014677,68150.0,68142.0,0.014679]
[1771713907390,0.014677,68151.0,68143.0,0.014679]
[1771713907802,0.014677,68153.0,68145.0,0.014678]
[1771713908102,0.014677,68154.0,68145.0,0.014678]
[1771713908500,0.014676,68155.0,68147.0,0.014678]
[1771713908697,0.014677,68154.0,68146.0,0.014678]
[1771713909607,0.014677,68154.0,68145.0,0.014678]
[1771713909905,0.014677,68154.0,68146.0,0.014678]
[1771713910104,0.014677,68154.0,68145.0,0.014678]